bitfinex/quotes_ETHUSD_20240811
["timestamp","ask_amount","ask_price","bid_price","bid_amount"]
[1723413664614,0.55,2582.8,2581.6,0.0774625]
[1723413664784,0.386981,2584.0,2581.8,2.394]
[1723413664983,3.87118,2583.2,2582.2,3.8726]
[1723413665174,3.87132,2583.1,2582.3,3.8724]
[1723413665376,0.937132,2583.0,2581.3,2.394]
[1723413665620,3.87317,2581.9,2581.3,2.394]
[1723413665913,3.87222,2582.5,2581.1,3.8743]
[1723413666099,3.87298,2582.0,2581.2,3.87409]
[1723413666302,3.87298,2582.0,2581.2,3.87415]
[1723413666619,0.2740581,2583.9,2581.7,3.8733]
[1723413666779,3.86947,2584.4,2583.6,3.87056]
[1723413666979,3.86947,2584.4,2583.4,3.8708]
[1723413666980,3.86893,2584.7,2583.0,2.2798]
[1723413667176,3.87023,2583.9,2583.1,3.8713]
[1723413667377,1.02666059,2585.2,2583.3,3.871]
[1723413667585,3.86882,2584.8,2583.9,3.87009]
[1723413667780,3.86823,2585.2,2584.0,0.07739489]
[1723413668027,3.86823,2585.2,2583.9,2.2798]
[1723413668028,3.86728,2585.8,2584.7,3.86878]
[1723413668324,3.86897,2584.7,2584.0,0.22798]
[1723413668619,3.86896,2584.7,2583.9,2.2798]
[1723413668824,3.86812,2585.3,2583.3,9.33579]
[1723413668978,3.86834,2585.1,2583.3,2.4648]
[1723413669174,3.87036,2583.8,2582.3,6.34029]
[1723413669424,3.87177,2582.8,2582.1,3.87268]
[1723413669718,3.87137,2583.1,2582.3,3.8725]
[1723413670019,0.387137,2583.0,2581.8,2.4678]
[1723413670189,0.387137,2583.0,2582.3,3.8724]
[1723413670190,0.937137,2583.0,2582.3,3.8724]
[1723413670397,3.86912,2584.6,2583.5,2.2744]
[1723413670708,3.86922,2584.5,2583.8,3.87021]
[1723413670892,0.2717734,2584.9,2582.7,3.87191]
[1723413671090,0.2717734,2584.9,2582.3,2.2744]
[1723413671091,3.87103,2583.3,2582.3,2.2744]
[1723413671419,0.387103,2583.2,2581.8,3.87326]
[1723413671719,0.387103,2583.2,2581.5,2.4239]
[1723413671720,3.87222,2582.5,2581.5,2.4239]
[1723413671961,3.87224,2582.5,2581.5,2.4239]
[1723413672100,3.87224,2582.5,2580.9,0.3876]
[1723413672101,3.87341,2581.7,2581.0,3.87444]
[1723413672286,3.87181,2582.8,2581.8,3.87316]
[1723413672287,3.937169,2582.8,2581.8,3.87316]
[1723413672482,3.89,2584.0,2582.3,3.87238]
[1723413672483,3.87101,2583.3,2582.3,3.87238]
[1723413672800,6.36554,2583.8,2582.2,3.87261]
[1723413672801,3.87147,2583.0,2582.2,3.87261]
[1723413673003,3.0,2583.2,2581.9,2.3579]
[1723413673206,3.87373,2581.5,2580.6,3.87503]
[1723413673417,3.87367,2581.6,2580.3,2.3579]
[1723413673587,0.387373,2581.5,2580.4,1.012353]
[1723413673937,3.0,2582.1,2581.0,3.87431]
[1723413674114,4.42298,2582.0,2580.4,1.012353]
[1723413674316,2.4747,2583.4,2581.5,3.8737]
[1723413674631,3.89,2584.0,2581.5,3.8737]
[1723413674632,0.8652554,2583.6,2582.0,2.3707]
[1723413674920,0.4042559,2584.2,2583.8,3.87024]
[1723413675082,3.86939,2584.4,2583.6,3.87055]
[1723413675286,0.1,2584.9,2582.8,2.3707]
[1723413675485,3.87104,2583.3,2582.3,3.8725]
[1723413675797,3.87104,2583.3,2582.2,2.3756]
[1723413675798,3.87193,2582.7,2582.2,2.3756]
[1723413675985,3.87236,2582.5,2581.7,9.24896]
[1723413676331,2.429,2583.7,2581.7,2.3756]
[1723413676332,3.87285,2582.1,2581.7,2.3756]
[1723413676486,3.87083,2583.5,2582.7,3.87185]
[1723413676685,3.87134,2583.1,2582.1,3.87268]
[1723413676881,3.87134,2583.1,2581.7,2.3756]
[1723413676882,3.87142,2583.1,2581.7,6.24896]
[1723413677136,3.87142,2583.1,2581.7,2.3756]
[1723413677137,3.87203,2582.7,2581.7,2.3756]
[1723413677336,6.29958,2583.6,2581.7,2.3756]
[1723413677337,3.87232,2582.5,2581.7,2.3756]
[1723413677552,3.87277,2582.2,2581.4,3.87382]
[1723413677768,3.87312,2581.9,2581.2,6.16411]
[1723413678560,3.026,2582.7,2581.2,6.16411]
[1723413678561,2.4235,2583.3,2581.3,3.95140207]
[1723413678715,3.86966,2584.3,2582.3,3.87245]
[1723413678716,3.8714,2583.1,2582.3,3.87245]
[1723413678921,2.4235,2583.8,2582.5,3.87219]
[1723413679149,3.87114,2583.3,2582.5,3.87219]
[1723413679354,0.47353077,2584.2,2582.6,0.07743225]
[1723413679532,3.32254773,2584.4,2583.4,3.87082]
[1723413679533,0.86564773,2584.4,2583.4,3.87082]
[1723413679865,0.86564773,2584.4,2582.8,6.29143]
[1723413679866,3.87037,2583.8,2582.8,6.29143]
[1723413680016,3.87116,2583.2,2582.8,2.4197]
[1723413680217,3.87078,2583.5,2582.2,5.4197]
[1723413680451,0.387037,2583.7,2582.2,2.4197]
[1723413680452,3.87207,2582.6,2582.2,2.4197]
[1723413680657,0.387207,2582.6,2582.2,2.4197]
[1723413680867,3.87085,2583.5,2581.7,2.4197]
[1723413681028,3.87222,2582.5,2581.7,6.293]
[1723413681254,3.87252,2582.3,2581.7,2.4197]
[1723413681648,0.387222,2582.4,2581.7,2.4197]
[1723413681848,3.87325,2581.9,2581.2,2.4197]
[1723413682319,3.87327,2581.8,2581.2,2.4197]
[1723413682527,3.55,2582.3,2581.2,2.4197]
[1723413682528,3.87284,2582.1,2581.2,2.4197]
[1723413682746,3.87077,2583.5,2581.3,0.07747172]
[1723413682920,3.87143,2583.1,2582.3,3.87238]
[1723413683255,4.1566137,2583.5,2582.4,0.07744074]
[1723413683455,0.2858737,2583.5,2582.4,0.07744074]
[1723413683662,3.86956,2584.3,2583.1,2.2555]
[1723413683663,3.86963,2584.3,2583.1,2.2555]
[1723413683867,3.87012,2583.9,2583.2,3.94854491]
[1723413684030,3.87012,2583.9,2583.3,0.07741138]
[1723413684365,2.3443,2585.1,2583.3,0.07741138]
[1723413684366,3.86874,2584.9,2584.1,3.86968]
[1723413684520,3.87012,2583.9,2583.2,4.0966]
[1723413684869,3.87012,2583.9,2583.1,6.13657]
[1723413685032,3.87043,2583.7,2583.1,2.2653]
[1723413685233,3.87012,2583.9,2583.1,2.2653]
[1723413685422,3.87012,2583.9,2583.2,3.87106]
[1723413685623,3.87012,2583.9,2583.3,0.0774096]
[1723413685624,0.774,2583.9,2583.3,0.0774096]
[1723413685919,0.774,2583.9,2583.1,2.2653]
[1723413685920,3.87056,2583.6,2582.4,2.4077]
[1723413686257,3.86896,2584.7,2583.9,3.87002]
[1723413686553,3.86914,2584.6,2583.9,0.07739001]
[1723413686863,3.86914,2584.6,2582.9,3.87158]
[1723413686864,3.86989,2584.1,2582.5,2.4077]
[1723413687036,3.86926,2584.5,2582.6,0.07740303]
[1723413687223,3.86926,2584.5,2583.6,3.87045]
[1723413687428,3.86968,2584.2,2583.4,3.87083]
[1723413687654,3.0,2584.5,2583.0,3.87139]
[1723413687824,3.87104,2583.3,2582.1,3.87276]
[1723413688024,0.387104,2583.2,2582.5,6.27979]
[1723413688290,3.87024,2583.9,2583.2,3.87114]
[1723413688574,3.62,2585.0,2581.7,0.3876]
[1723413688575,3.86863,2584.9,2584.0,3.86995]
[1723413688727,3.86882,2584.8,2584.1,0.07738682]
[1723413689055,3.86892,2584.7,2584.1,0.07738682]
[1723413689266,2.4797,2585.6,2584.1,0.07738682]
[1723413689451,3.93396627,2586.3,2584.2,2.4046]
[1723413689452,0.24797,2585.5,2584.2,2.4046]
[1723413689652,3.86951,2584.3,2583.7,2.403]
[1723413689863,3.8694,2584.4,2583.7,2.403]
[1723413690164,3.86918,2584.6,2583.7,2.403]
[1723413690367,3.86952,2584.3,2583.7,2.403]
[1723413690571,0.55,2584.2,2583.2,2.4562]
[1723413690728,3.86894,2584.7,2582.8,3.8717]
[1723413690729,2.459,2584.7,2582.8,3.8717]
[1723413690928,2.459,2584.7,2582.7,2.4562]
[1723413690929,3.87126,2583.2,2582.7,2.4562]
[1723413691128,3.87135,2583.1,2582.4,3.87225]
[1723413691330,3.87126,2583.2,2582.4,3.87225]
[1723413691331,3.87148,2583.0,2582.4,3.87225]
[1723413691529,3.87002,2584.0,2582.2,6.18871]
[1723413691530,3.86884,2584.8,2582.7,2.3247]
[1723413691780,0.62932,2585.1,2583.4,3.87073]
[1723413691781,3.86969,2584.2,2583.4,3.87073]
[1723413691979,3.86995,2584.1,2583.4,3.9481352]
[1723413692369,3.86995,2584.1,2582.0,3.87288]
[1723413692370,0.2909,2584.5,2583.5,2.38740521]
[1723413692682,0.62932,2585.1,2583.5,2.38740521]
[1723413692683,0.62932,2585.1,2583.6,0.0773887]
[1723413692885,3.86962,2584.3,2583.5,2.31]
[1723413693182,3.86983,2584.1,2583.5,2.31]
[1723413693381,3.86998,2584.0,2583.5,2.31]
[1723413693693,4.643765,2584.1,2582.5,3.0]
[1723413693694,3.87119,2583.2,2582.5,2.3695]
[1723413693999,2.2809,2584.9,2582.6,0.07743179]
[1723413694000,3.86991,2584.1,2582.6,0.07743179]
[1723413694177,3.86991,2584.1,2583.4,3.87083]
[1723413694487,3.86994,2584.1,2583.4,2.4986]
[1723413694788,0.386994,2584.0,2583.4,6.36943]
[1723413694943,3.86957,2584.3,2583.4,2.4986]
[1723413695143,6.86938,2584.4,2583.8,3.87026]
[1723413695345,6.86938,2584.4,2583.7,0.07739799]
[1723413695574,6.86938,2584.4,2582.6,3.87205]
[1723413695575,3.87025,2583.9,2582.6,3.87205]
[1723413695955,3.87025,2583.9,2581.2,0.501832]
[1723413695956,3.87163,2582.9,2582.4,2.2894]
[1723413696403,3.0,2583.6,2582.6,3.87195]
[1723413696603,3.87082,2583.5,2582.8,3.87162]
[1723413696807,3.8716,2583.0,2582.4,2.2894]
[1723413696965,3.87121,2583.2,2582.4,2.2894]
[1723413697172,3.87161,2583.0,2582.4,2.2894]
[1723413697366,3.87202,2582.7,2582.0,3.87282]
[1723413697711,3.87172,2582.9,2582.2,3.87253]
[1723413697864,3.87078,2583.5,2582.0,3.87289]
[1723413698065,3.87183,2582.8,2582.2,3.87266]
[1723413698306,3.87209,2582.6,2581.9,2.4756]
[1723413698604,3.387078,2583.4,2582.6,3.87194]
[1723413698767,3.387078,2583.4,2582.0,0.07745352]
[1723413698768,3.87132,2583.1,2582.4,3.87225]
[1723413699121,3.87149,2583.0,2582.3,3.9498354]
[1723413699263,3.87149,2583.0,2582.3,0.38726]
[1723413699468,0.55,2583.3,2581.3,6.1314]
[1723413699469,3.87175,2582.9,2581.3,6.1314]
[1723413699667,3.87273,2582.2,2581.4,3.87377]
[1723413699870,3.87242,2582.4,2581.6,3.87341]
[1723413700065,3.937242,2582.3,2581.3,2.2575]
[1723413700296,3.8727,2582.2,2581.3,2.2575]
[1723413700500,3.87351,2581.7,2581.3,2.2575]
[1723413700808,0.55,2582.3,2580.8,2.2575]
[1723413701026,3.0,2582.8,2581.8,3.87316]
[1723413701312,4.72197,2582.7,2581.7,2.2575]
[1723413701466,3.87151,2583.0,2582.2,3.87257]
[1723413701467,3.87158,2583.0,2582.2,3.87257]
[1723413701671,3.87264,2582.3,2581.7,2.2575]
[1723413701872,3.87283,2582.1,2581.7,2.2575]
[1723413702297,3.0,2583.0,2581.7,2.2575]
[1723413702511,3.0,2583.2,2581.8,3.87311]
[1723413702815,3.87148,2583.0,2581.8,3.87311]
[1723413702968,7.74465,2582.5,2581.8,3.87311]
[1723413703165,3.87263,2582.3,2581.7,2.2575]
[1723413703369,3.87268,2582.2,2581.7,2.2575]
[1723413703815,3.87243,2582.4,2581.7,6.13079]
[1723413704106,3.87244,2582.4,2581.7,2.2575]
[1723413704270,3.87268,2582.2,2581.7,2.2575]
[1723413704466,3.87311,2581.9,2581.2,2.4143]
[1723413704670,3.87215,2582.6,2580.8,3.87463]
[1723413704671,3.87366,2581.6,2580.8,3.87463]
[1723413704924,3.87353,2581.7,2581.0,3.87437]
[1723413705121,3.87322,2581.9,2581.2,3.87416]
[1723413705408,4.260702,2581.8,2580.8,3.87468]
[1723413705567,3.87341,2581.7,2581.0,3.87446]
[1723413705772,3.87384,2581.5,2580.8,3.87468]
[1723413706008,3.8733,2581.8,2581.1,3.8742]
[1723413706208,3.87351,2581.7,2581.1,3.87428]
[1723413706382,0.55,2582.1,2581.4,3.87372]
[1723413706383,3.87288,2582.1,2581.4,3.87372]
[1723413706587,3.87323,2581.9,2581.1,3.87421]
[1723413706801,3.55,2582.0,2581.0,3.87445]
[1723413706802,7.74707,2581.7,2581.0,3.87445]
[1723413707007,7.74707,2581.7,2580.7,2.4143]
[1723413707008,0.774707,2581.7,2580.7,2.4143]
[1723413707173,3.87443,2581.1,2580.7,2.4143]
[1723413707376,3.0,2582.0,2581.5,3.87362]
[1723413707585,3.87228,2582.5,2581.6,2.4143]
[1723413707790,3.87251,2582.4,2581.6,6.36524108]
[1723413708000,0.774479,2582.4,2581.6,2.49176108]
[1723413708317,3.87261,2582.3,2581.6,2.4143]
[1723413708485,3.87261,2582.3,2580.5,3.893]
[1723413708486,3.87337,2581.8,2581.1,2.4996]
[1723413708686,3.0,2582.7,2581.2,3.87405]
[1723413708687,3.8732,2581.9,2581.2,3.87405]
[1723413709018,3.0,2582.7,2581.1,2.4996]
[1723413709019,3.8734,2581.8,2581.1,2.4996]
[1723413709175,3.8734,2581.8,2580.8,3.87473]
[1723413709176,3.87445,2581.1,2580.3,6.28152]
[1723413709575,3.87457,2581.0,2580.3,6.28152]
[1723413709817,3.87457,2581.0,2580.3,2.4061]
[1723413709975,3.8745,2581.0,2580.3,6.2815]
[1723413710311,3.0,2581.5,2580.3,6.2815]
[1723413710312,3.87397,2581.4,2580.4,0.07750032]
[1723413710509,2.3783,2581.9,2580.8,3.87476]
[1723413710733,3.87366,2581.6,2580.9,0.0774845]
[1723413710874,0.387366,2581.5,2580.8,3.95213453]
[1723413711216,3.87366,2581.6,2580.9,0.0774845]
[1723413711575,3.0,2581.8,2580.4,3.87525]
[1723413711779,3.87302,2582.0,2580.3,2.4061]
[1723413711780,3.87442,2581.1,2580.3,2.4061]
[1723413712021,0.387442,2581.1,2580.4,3.87534]
[1723413712316,3.0,2581.6,2580.3,2.4061]
[1723413712317,3.87502,2580.7,2580.3,2.4061]
[1723413712517,3.875,2580.7,2580.3,2.4061]
[1723413712674,3.87439,2581.1,2580.3,2.4061]
[1723413712878,4.561829,2581.1,2580.3,2.4061]
[1723413713072,3.87463,2580.9,2580.3,6.28152]
[1723413713379,3.87463,2580.9,2579.9,2.3721]
[1723413713380,3.87498,2580.7,2579.9,2.3721]
[1723413713604,3.87498,2580.7,2580.1,3.87569]
[1723413713921,7.7488,2581.1,2580.4,3.87535]
[1723413714077,3.0,2581.4,2580.5,0.07750113]
[1723413714278,3.87322,2581.9,2581.1,3.87421]
[1723413714621,3.87322,2581.9,2581.0,3.87437]
[1723413714622,3.87345,2581.7,2581.0,3.87437]
[1723413714794,1.359482,2581.8,2580.8,0.67971]
[1723413714978,7.27,2582.0,2580.7,2.3721]
[1723413715180,3.87374,2581.5,2580.8,0.07748459]
[1723413715406,3.87374,2581.5,2580.9,0.55]
[1723413715936,3.87416,2581.3,2580.7,2.3721]
[1723413716106,3.87394,2581.4,2580.7,2.3721]
[1723413716279,3.87366,2581.6,2580.9,3.87451]
[1723413716617,3.87367,2581.6,2581.0,3.95192238]
[1723413716816,3.87342,2581.7,2581.1,3.87422]
[1723413717115,3.0,2581.6,2581.1,3.87422]
[1723413717415,15.01613,2582.0,2581.3,3.87399]
[1723413717628,0.75933377,2582.8,2581.4,0.07747108]
[1723413717629,3.87271,2582.2,2581.4,0.07747108]
[1723413717826,3.8735,2581.7,2580.9,3.87453]
[1723413717975,3.87331,2581.8,2580.8,0.23721]
[1723413718306,3.87395,2581.4,2580.7,2.3721]
[1723413718519,3.87447,2581.0,2580.7,2.3721]
[1723413718680,3.87417,2581.2,2580.7,2.3721]
[1723413719020,4.261325,2581.4,2580.7,2.3721]
[1723413719021,0.387395,2581.4,2580.7,2.3721]
[1723413719188,3.87395,2581.4,2580.7,6.24692]
[1723413719389,3.87358,2581.6,2580.7,2.3721]
[1723413719390,3.8743,2581.2,2580.7,2.3721]
[1723413719708,0.38743,2581.1,2580.2,2.3187]
[1723413719880,3.87515,2580.6,2580.2,2.3187]
[1723413720082,7.74966,2580.8,2580.2,2.3187]
[1723413720283,3.87481,2580.8,2580.2,2.3187]
[1723413720620,3.87418,2581.2,2580.6,2.3187]
[1723413720781,3.87465,2580.9,2580.6,2.3187]
[1723413720982,3.0,2581.6,2580.1,2.3187]
[1723413721218,3.87349,2581.7,2580.9,3.87449]
[1723413721385,3.87349,2581.7,2581.0,3.95182243]
[1723413721724,3.87395,2581.4,2580.9,2.4214]
[1723413721890,0.29146668,2581.8,2580.3,2.4683]
[1723413722100,6.14481,2582.2,2580.3,2.4683]
[1723413722101,3.8744,2581.1,2580.4,3.87527]
[1723413722512,7.74884,2581.1,2580.4,3.87527]
[1723413722707,3.87361,2581.6,2580.3,2.4683]
[1723413723049,3.87548,2580.4,2579.9,2.3255]
[1723413723339,4.263168,2580.3,2579.9,2.3255]
[1723413723505,3.87562,2580.3,2579.9,2.3255]
[1723413723840,3.87598,2580.0,2579.5,2.2852]
[1723413724038,3.87611,2579.9,2579.5,2.2852]
[1723413724244,8.527429,2579.9,2579.0,6.21947]
[1723413724741,3.87567,2580.2,2579.6,3.87656]
[1723413724956,3.87567,2580.2,2579.5,0.077524]
[1723413724957,7.75145,2580.2,2579.5,0.077524]
[1723413725114,7.75222,2579.9,2579.0,2.3421]
[1723413725307,7.75222,2579.9,2579.1,3.87723]
[1723413725509,7.75222,2579.9,2579.0,2.3421]
[1723413726038,3.87611,2579.9,2579.0,2.3421]
[1723413726203,7.75222,2579.9,2579.1,3.87719]
[1723413726400,8.527442,2579.9,2579.1,3.87719]
[1723413726804,3.87576,2580.2,2579.0,2.3421]
[1723413727044,3.87597,2580.0,2579.3,3.87689]
[1723413727411,7.75222,2579.9,2579.0,2.3421]
[1723413727751,3.87611,2579.9,2579.1,3.87721]
[1723413727903,0.687529,2580.4,2579.9,2.2982]
[1723413728109,3.87485,2580.8,2580.1,3.87573]
[1723413728316,3.8747,2580.9,2579.9,2.2982]
[1723413728525,3.87591,2580.1,2579.5,2.2982]
[1723413728732,3.87548,2580.4,2579.8,4.0037495]
[1723413728931,3.87562,2580.3,2579.8,0.1275695]
[1723413729243,3.87547,2580.4,2579.8,4.0036895]
[1723413729449,3.87533,2580.5,2579.8,4.0036895]
[1723413729450,6.87495,2580.7,2579.8,0.1275695]
[1723413729740,3.87564,2580.3,2579.8,0.1275695]
[1723413730231,7.75146,2580.2,2579.8,0.1275695]
[1723413730409,4.650846,2580.2,2579.8,0.1275695]
[1723413730835,3.8757,2580.2,2579.8,0.1275695]
[1723413731311,3.87545,2580.4,2579.8,4.0037995]
[1723413731624,3.87452,2581.0,2579.8,4.0037995]
[1723413731625,3.87456,2581.0,2580.4,3.87531]
[1723413731954,4.510224,2581.2,2579.8,4.0037095]
[1723413731955,3.87516,2580.6,2580.3,2.3586]
[1723413732151,0.4510224,2581.1,2580.7,3.87486]
[1723413732311,3.87394,2581.4,2580.7,3.87486]
[1723413732514,3.87417,2581.2,2580.6,2.3586]
[1723413732712,3.87505,2580.7,2580.1,2.262]
[1723413733048,3.87505,2580.7,2580.1,6.13773]
[1723413733049,7.75006,2580.7,2580.1,6.13773]
[1723413733249,3.87508,2580.6,2580.1,2.262]
[1723413733512,3.8753,2580.5,2580.1,2.262]
[1723413733641,1.114394,2581.4,2580.1,2.262]
[1723413733958,7.74736,2581.6,2580.9,3.87451]
[1723413734161,1.00678663,2581.8,2580.8,0.07748271]
[1723413734363,1.00678663,2581.8,2580.3,2.262]
[1723413734364,3.87478,2580.8,2580.3,2.262]
[1723413734534,3.87415,2581.3,2580.5,3.87511]
[1723413734863,3.87457,2581.0,2580.3,2.262]
[1723413735061,3.87427,2581.2,2580.6,3.87497]
[1723413735267,1.114377,2581.4,2580.3,2.262]
[1723413735421,3.87531,2580.5,2580.3,2.262]
[1723413735623,4.9477577,2581.3,2580.4,0.0775075]
[1723413735822,3.87486,2580.8,2580.3,2.262]
[1723413736119,3.87517,2580.6,2580.3,2.262]
[1723413736319,0.387517,2580.6,2580.3,2.262]
[1723413736519,7.27,2581.5,2580.6,3.87495]
[1723413736520,3.87417,2581.2,2580.6,3.87495]
[1723413736750,3.87364,2581.6,2580.7,0.07749314]
[1723413736929,3.8738,2581.5,2580.9,2.2902]
[1723413737141,3.8735,2581.7,2581.1,3.87429]
[1723413737357,3.8738,2581.5,2581.0,0.07748098]
[1723413737745,3.8739,2581.4,2581.0,0.07748098]
[1723413737949,3.87349,2581.7,2580.9,2.2902]
[1723413738166,3.0,2581.6,2581.1,3.87423]
[1723413738363,6.87368,2581.6,2581.0,0.62747802]
[1723413738568,6.87368,2581.6,2580.9,6.16473]
[1723413738569,3.87403,2581.3,2580.9,2.2902]
[1723413738746,3.0,2581.6,2580.5,2.2709]
[1723413738747,3.87457,2581.0,2580.5,2.2709]
[1723413738949,3.87489,2580.8,2580.5,2.2709]
[1723413739148,3.87494,2580.7,2580.5,2.2709]
[1723413739474,3.0,2581.4,2580.5,2.2709]
[1723413739688,3.87307,2582.0,2580.1,2.4731]
[1723413739689,0.3,2581.3,2580.1,2.4731]
[1723413739897,3.87433,2581.1,2580.6,3.87496]
[1723413740677,3.927667,2581.5,2580.1,2.4731]
[1723413740678,3.87472,2580.9,2580.2,3.87554]
[1723413740866,3.87472,2580.9,2580.3,0.55]
[1723413741061,3.87472,2580.9,2580.3,1.239864]
[1723413741250,7.74942,2580.9,2580.3,1.239864]
[1723413741452,3.8747,2580.9,2580.3,1.239864]
[1723413741666,7.7494,2580.9,2580.3,1.239864]
[1723413741861,3.927667,2581.5,2580.1,2.4731]
[1723413741862,3.87524,2580.5,2580.1,2.4731]
[1723413742063,3.87507,2580.6,2580.1,2.4731]
[1723413742635,3.87524,2580.5,2580.1,2.4731]
[1723413742871,6.87436,2581.1,2580.1,2.4731]
[1723413743049,3.87487,2580.8,2580.1,2.4731]
[1723413743257,3.87465,2580.9,2580.1,2.4731]
[1723413743564,3.87536,2580.5,2580.1,2.4731]
[1723413743739,3.87538,2580.4,2580.1,2.4731]
[1723413743938,3.87508,2580.6,2580.1,2.4731]
[1723413744379,3.87547,2580.4,2580.1,2.4731]
[1723413745377,3.0,2580.8,2580.1,2.4731]
[1723413745540,0.60691956,2582.5,2580.2,0.62749733]
[1723413745541,3.87425,2581.2,2580.2,0.62749733]
[1723413745753,3.87425,2581.2,2580.5,3.87508]
[1723413746009,3.87425,2581.2,2580.6,0.387508]
[1723413746156,7.7485,2581.2,2580.6,4.34003678]
[1723413746354,3.87425,2581.2,2580.6,4.34003678]
[1723413746556,8.197667,2581.5,2580.9,6.25343]
[1723413746557,7.27,2581.5,2580.9,6.25343]
[1723413746877,3.87404,2581.3,2580.9,2.3789]
[1723413747075,22.765,2581.8,2580.9,2.3789]
[1723413747365,22.765,2581.8,2581.0,0.07748095]
[1723413747366,3.87365,2581.6,2581.0,0.07748095]
[1723413747536,7.74732,2581.6,2581.0,0.71058104]
[1723413747742,3.87377,2581.5,2581.0,0.71058104]
[1723413748043,3.87397,2581.4,2581.0,0.71058104]
[1723413748367,3.87377,2581.5,2581.0,0.07748095]
[1723413748894,3.87356,2581.6,2580.9,2.3789]
[1723413749052,3.8744,2581.1,2580.9,2.3789]
[1723413749570,3.87446,2581.0,2580.4,2.4095]
[1723413749879,3.87435,2581.1,2580.5,4.88110242]
[1723413750041,3.87413,2581.3,2580.5,3.95261342]
[1723413750242,3.87449,2581.0,2580.4,2.4095]
[1723413750557,3.87476,2580.8,2580.4,2.4095]
[1723413751285,3.87431,2581.1,2580.0,2.3131]
[1723413751487,3.87434,2581.1,2580.0,2.3131]
[1723413751801,0.3,2581.3,2580.2,3.87556]
[1723413751802,3.87477,2580.8,2580.2,3.87556]
[1723413752079,3.87477,2580.8,2580.0,2.3131]
[1723413752080,3.87528,2580.5,2580.0,2.3131]
[1723413752300,3.0,2581.0,2580.0,2.3131]
[1723413752301,3.0,2581.0,2580.0,2.55716695]
[1723413752503,3.87472,2580.9,2580.3,3.8754]
[1723413752727,3.87455,2581.0,2580.4,0.07749655]
[1723413752860,3.87426,2581.2,2580.5,3.87516]
[1723413753060,3.0,2581.3,2580.8,3.87476]
[1723413753297,3.87411,2581.3,2580.8,0.0774839]
[1723413753508,3.0,2581.7,2580.7,2.3131]
[1723413753689,3.87472,2580.9,2580.3,2.3603]
[1723413753894,3.87478,2580.8,2580.4,0.55]
[1723413754100,3.0,2581.4,2580.5,0.07749835]
[1723413754276,3.87352,2581.7,2580.9,2.3236]
[1723413754472,3.87352,2581.7,2581.0,0.07747825]
[1723413754676,3.87352,2581.7,2580.9,2.943432]
[1723413754677,3.87433,2581.1,2580.9,2.943432]
[1723413754875,3.87381,2581.5,2580.9,2.3236]
[1723413755183,3.87381,2581.5,2581.0,0.62747884]
[1723413755987,3.8738,2581.5,2580.9,2.3236]
[1723413756239,3.87378,2581.5,2580.9,2.3236]
[1723413756481,3.87296,2582.1,2581.3,2.3236]
[1723413756604,1.011496,2582.7,2581.4,0.62746297]
[1723413756804,2.2923,2583.0,2581.8,3.87314]
[1723413757045,2.2923,2583.0,2582.0,2.3236]
[1723413757225,3.87203,2582.7,2582.0,2.3236]
[1723413757627,3.87232,2582.5,2582.0,2.3236]
[1723413757829,3.87238,2582.4,2582.0,2.3236]
[1723413758015,3.87239,2582.4,2582.0,2.3236]
[1723413758216,3.87232,2582.5,2582.0,2.3236]
[1723413758416,3.87232,2582.5,2582.0,2.943286]
[1723413758417,3.87237,2582.4,2582.0,2.943286]
[1723413758626,3.87134,2583.1,2582.3,3.8725]
[1723413758810,2.3149,2583.4,2582.3,0.0774406]
[1723413759027,2.3149,2583.4,2582.1,0.07744067]
[1723413759028,3.87202,2582.7,2582.1,0.07744067]
[1723413759239,3.87202,2582.7,2582.2,0.55]
[1723413759451,3.87237,2582.4,2582.1,0.76681834]
[1723413759659,3.87259,2582.3,2581.1,5.42]
[1723413759819,3.87259,2582.3,2581.7,3.8734]
[1723413760021,3.87236,2582.4,2581.7,3.8734]
[1723413760720,3.87225,2582.5,2581.6,2.42]
[1723413760721,3.0,2582.8,2581.6,2.42]
[1723413760924,0.327339,2583.2,2582.2,2.42]
[1723413761154,3.95849,2583.3,2582.3,0.62743623]
[1723413761317,3.87166,2582.9,2582.3,0.55]
[1723413761519,6.87177,2582.8,2582.3,1.62153]
[1723413761856,3.87212,2582.6,2581.8,2.42]
[1723413762023,3.87183,2582.8,2582.1,3.87281]
[1723413762350,3.87151,2583.0,2582.4,2.42]
[1723413762555,3.87121,2583.2,2582.4,2.42]
[1723413762556,3.87121,2583.2,2582.4,2.49743705]
[1723413762728,4.47696795,2583.8,2582.4,2.49743705]
[1723413762930,4.47696795,2583.8,2583.1,2.42]
[1723413763131,3.86948,2584.4,2583.7,3.8703]
[1723413763338,3.86952,2584.3,2583.8,0.55]
[1723413763517,3.86948,2584.4,2583.8,0.55]
[1723413763720,3.86947,2584.4,2583.7,0.55]
[1723413763928,3.86854,2585.0,2583.8,2.38318967]
[1723413764139,3.86854,2585.0,2584.4,2.3058]
[1723413764344,3.86792,2585.4,2584.6,3.86893]
[1723413764526,3.86618,2586.6,2585.1,2.3058]
[1723413764527,3.86731,2585.8,2585.1,2.3058]
[1723413764844,3.86743,2585.7,2585.2,0.69477342]
[1723413765044,3.86743,2585.7,2585.1,2.3058]
[1723413765249,3.86666,2586.3,2585.1,6.17405]
[1723413765419,0.60596937,2586.4,2585.5,2.4175]
[1723413765618,0.60596937,2586.4,2585.8,3.86726]